bitfinex-derivatives/quotes_ETHF0:USTF0_20250606
["timestamp","ask_amount","ask_price","bid_price","bid_amount"]
[1749221312454,6.54929,2516.0,2515.9,0.79428]
[1749221312647,0.6908,2516.2,2515.6,1.3195]
[1749221312846,0.7943,2516.0,2515.9,0.79428]
[1749221313048,0.0059525,2516.3,2516.2,0.79421]
[1749221313444,4.72334,2517.1,2516.2,0.79421]
[1749221313445,4.5676,2517.1,2516.6,1.9852]
[1749221313649,0.79396,2517.0,2516.9,0.07133351]
[1749221314050,3.885,2517.1,2516.9,0.07133351]
[1749221314051,3.2078,2517.1,2516.9,0.07133351]
[1749221314349,0.79396,2517.0,2516.9,0.07133351]
[1749221314652,0.79399,2516.9,2516.8,0.794]
[1749221315051,0.79399,2516.9,2516.7,1.2690525]
[1749221315052,0.79398,2517.0,2516.9,0.79396]
[1749221315350,2.5e-06,2517.2,2517.1,0.79393]
[1749221315548,3.8802,2518.7,2517.0,2.617]
[1749221315851,12.68411941,2520.1,2517.0,2.617]
[1749221315852,24.031,2519.1,2519.0,0.79333]
[1749221316157,5.755,2519.2,2519.1,0.7933]
[1749221316453,3.2078,2519.3,2518.7,3.2078]
[1749221316658,0.79328,2519.2,2518.9,0.0059525]
[1749221316958,0.79328,2519.2,2518.9,0.7993025]
[1749221317752,3.2078,2519.3,2518.9,0.7993025]
[1749221317951,3.2078,2519.3,2518.9,0.0059525]
[1749221318152,0.79333,2519.0,2518.9,0.0059525]
[1749221318352,0.79331,2519.1,2518.9,0.0059525]
[1749221318655,0.79333,2519.0,2518.9,0.0059525]
[1749221318959,0.79332,2519.1,2518.9,0.0059525]
[1749221319147,0.79333,2519.0,2518.9,0.0059525]
[1749221319550,6.39433,2519.0,2518.9,0.0059525]
[1749221319751,9.60213,2519.0,2518.9,0.0059525]
[1749221322254,9.60213,2519.0,2517.6,1.98442]
[1749221322255,13.8088,2519.0,2517.9,0.79366]
[1749221322564,0.0059525,2519.4,2518.0,0.79363]
[1749221322565,0.79361,2518.2,2518.0,0.79363]
[1749221322757,0.79361,2518.2,2518.1,1.3405]
[1749221323452,0.79364,2518.0,2517.9,0.0059525]
[1749221323650,0.79354,2518.4,2517.9,0.0059525]
[1749221323861,5.599,2518.4,2517.9,1.3180525]
[1749221324054,0.79364,2518.0,2517.9,1.3180525]
[1749221324252,3.2078,2518.5,2517.9,1.3180525]
[1749221324460,3.2078,2518.5,2518.1,3.2078]
[1749221324659,0.79355,2518.3,2518.2,1.3121]
[1749221325263,0.79355,2518.3,2518.2,2.10568]
[1749221325461,0.79354,2518.4,2518.3,0.79354]
[1749221325657,0.79354,2518.4,2518.3,1.3121]
[1749221326263,3.2078,2518.5,2518.3,1.3121]
[1749221326456,3.2078,2519.2,2518.4,3.2078]
[1749221326763,5.599,2519.1,2518.7,0.79341]
[1749221327070,0.79341,2518.8,2518.6,0.79343]
[1749221327263,0.79355,2518.3,2518.2,3.2078]
[1749221327454,3.2078,2518.6,2518.2,3.2078]
[1749221327761,3.2078,2518.6,2518.5,0.79349]
[1749221327967,19.685,2519.3,2518.5,0.79349]
[1749221327968,0.79339,2518.8,2518.7,0.79341]
[1749221328155,0.79342,2518.7,2518.6,2.07954]
[1749221328358,0.79342,2518.7,2518.6,1.2861]
[1749221328659,0.79347,2518.6,2518.1,9.4797]
[1749221328972,8.8068,2519.0,2518.4,3.2078]
[1749221329258,0.79336,2518.9,2518.8,0.79336]
[1749221329463,0.79336,2518.9,2518.4,5.19158]
[1749221329464,0.79337,2518.9,2518.5,1.3777]
[1749221329859,0.79337,2518.9,2518.8,0.79339]
[1749221330171,0.79337,2518.9,2518.5,1.3777]
[1749221330172,0.79337,2518.9,2518.7,0.7934]
[1749221330361,0.79337,2518.9,2518.8,1.3777]
[1749221332167,0.79337,2518.9,2518.8,2.17109]
[1749221332369,7.5822,2519.2,2519.0,0.79331]
[1749221332370,0.79332,2519.1,2519.0,0.79331]
[1749221332566,6.39229,2519.2,2519.0,0.79331]
[1749221333069,6.39229,2519.2,2519.1,2.0968]
[1749221333365,0.0059525,2519.4,2519.1,1.3035]
[1749221333570,0.0059525,2519.4,2519.3,0.79324]
[1749221334564,0.0059525,2519.4,2519.3,5.79324]
[1749221334766,0.0059525,2519.4,2519.3,0.79324]
[1749221335272,0.0059525,2519.4,2519.3,5.79324]
[1749221336261,0.0059525,2519.4,2519.3,0.79324]
[1749221336876,3.2078,2520.0,2519.3,5.0]
[1749221337169,0.999,2521.5,2520.1,1.98246]
[1749221337170,0.79288,2520.5,2520.1,1.98246]
[1749221337366,0.79287,2520.5,2520.2,4.5658]
[1749221337567,3.2078,2520.8,2520.3,1.358]
[1749221337773,0.79283,2520.6,2520.5,0.79283]
[1749221337971,3.2137525,2520.8,2520.3,1.3639525]
[1749221338171,0.79288,2520.5,2520.4,0.79288]
[1749221338369,3.2137525,2520.8,2520.3,1.3639525]
[1749221338870,3.2137525,2520.8,2520.3,0.0059525]
[1749221338871,0.79289,2520.4,2520.3,0.0059525]
[1749221339066,6.38989,2520.4,2520.3,0.0059525]
[1749221339376,6.38989,2520.4,2519.5,0.79315]
[1749221339377,0.79315,2519.6,2519.5,0.79315]
[1749221340071,0.79311,2519.8,2519.7,0.7931]
[1749221340274,3.2078,2519.9,2519.4,1.983]
[1749221340573,0.79309,2519.8,2519.7,0.79308]
[1749221340774,0.79324,2519.3,2519.2,3.2137525]
[1749221340971,0.79324,2519.3,2519.2,0.0059525]
[1749221341167,3.2078,2519.4,2519.3,0.79324]
[1749221341362,0.79322,2519.4,2519.3,0.79323]
[1749221341773,0.0059525,2519.5,2519.3,0.79322]
[1749221342074,0.7932,2519.4,2519.3,0.79322]
[1749221342372,0.79324,2519.3,2519.2,0.0059525]
[1749221343070,5.79324,2519.3,2519.2,0.0059525]
[1749221343274,5.79324,2519.3,2518.5,3.2078]
[1749221343275,6.98314,2519.3,2518.5,4.4773]
[1749221343475,0.79338,2518.9,2518.8,0.79339]
[1749221343666,3.2078,2519.1,2518.6,1.98365]
[1749221343871,6.39025,2519.3,2519.2,0.79324]
[1749221344068,0.79333,2519.1,2519.0,0.79333]
[1749221344273,0.79338,2518.9,2518.8,0.79338]
[1749221344471,10.7668,2519.4,2518.7,1.2695]
[1749221344876,0.79329,2519.2,2519.1,0.7933]
[1749221345074,0.7933,2519.1,2519.0,0.79331]
[1749221345478,0.79329,2519.2,2519.1,0.79329]
[1749221345876,3.2078,2519.4,2518.8,3.2078]
[1749221346174,0.0059525,2519.5,2519.4,0.7932]
[1749221346477,0.0059525,2519.5,2519.4,4.001]
[1749221347768,3.2137525,2519.5,2518.9,5.597]
[1749221347972,0.0059525,2519.5,2518.8,4.5025]
[1749221348170,0.79325,2519.3,2519.2,0.79324]
[1749221348375,0.7933,2519.2,2519.1,0.79329]
[1749221348780,0.79336,2519.0,2518.9,0.79335]
[1749221348973,0.79336,2519.0,2518.5,3.2078]
[1749221348974,5.495,2519.1,2518.5,3.2078]
[1749221349278,1.2657,2519.4,2518.7,1.98357]
[1749221349279,1.98308,2519.4,2518.7,1.98357]
[1749221349482,0.79339,2518.9,2518.8,0.79338]
[1749221349778,5.19099,2519.2,2518.6,1.2947]
[1749221349979,0.79336,2519.0,2518.9,0.79335]
[1749221350375,0.79332,2519.1,2519.0,0.7933]
[1749221350576,5.496,2519.2,2518.7,1.98358]
[1749221350776,0.79336,2518.9,2518.8,0.79338]
[1749221351179,0.79346,2518.6,2518.5,4.00126]
[1749221351574,3.2078,2518.9,2518.5,3.2078]
[1749221351775,0.79333,2519.1,2519.0,0.79332]
[1749221351977,0.79335,2519.0,2518.9,0.79334]
[1749221352583,0.79339,2518.9,2518.8,0.79338]
[1749221352882,0.79345,2518.7,2518.6,0.79344]
[1749221354080,3.2078,2518.9,2518.8,0.7934]
[1749221354284,6.28933,2519.1,2519.0,0.79331]
[1749221354475,6.28933,2519.1,2518.6,1.369]
[1749221354476,5.496,2519.4,2518.9,1.98339]
[1749221354682,0.7933,2519.1,2519.0,2.16231]
[1749221354883,0.7933,2519.1,2519.0,0.79331]
[1749221355179,6.28922,2519.4,2519.3,0.79324]
[1749221355480,0.0059525,2519.5,2519.4,0.79321]
[1749221356081,0.7991325,2519.5,2519.4,0.79321]
[1749221356586,1.98302,2519.4,2519.0,1.369]
[1749221356881,10.68682,2519.4,2518.8,0.6826]
[1749221357086,0.79339,2518.9,2518.8,0.79337]
[1749221357292,0.79342,2518.8,2518.7,0.7934]
[1749221357691,0.79353,2518.5,2518.4,0.79351]
[1749221357891,0.79346,2518.7,2518.6,0.79344]
[1749221358092,3.2078,2518.8,2518.0,5.19191]
[1749221358290,3.2078,2518.8,2518.6,0.79344]
[1749221358291,0.79345,2518.7,2518.6,0.79344]
[1749221358585,5.496,2518.7,2518.1,1.3579]
[1749221358792,0.79349,2518.6,2518.5,0.79347]
[1749221359092,3.2078,2518.8,2518.7,0.79343]
[1749221359288,0.79339,2518.9,2518.5,1.98371]
[1749221359489,0.79342,2518.8,2518.7,0.79341]
[1749221359783,0.79359,2518.2,2517.9,9.3909]
[1749221359991,0.79353,2518.4,2518.3,0.79351]
[1749221360283,0.79351,2518.5,2518.4,0.79351]
[1749221360480,6.28945,2518.7,2518.6,0.79346]
[1749221360680,0.79347,2518.6,2518.5,0.79347]
[1749221361276,6.28946,2518.7,2518.6,0.79346]
[1749221361491,0.79352,2518.5,2518.4,0.79351]
[1749221361684,5.496,2518.7,2517.9,3.8949]
[1749221361685,3.2078,2518.6,2517.9,3.8949]
[1749221361985,0.79363,2518.1,2518.0,2.15552]
[1749221362188,3.31723,2518.5,2518.0,1.3619]
[1749221362483,0.79358,2518.3,2518.2,0.79357]
[1749221362684,0.79353,2518.4,2518.3,0.79352]
[1749221362884,8.14048,2518.7,2518.3,0.79352]
[1749221362885,6.28943,2518.7,2518.6,0.79346]
[1749221363089,9.49717,2518.9,2518.8,0.79339]
[1749221363290,8.7038,2518.9,2518.4,1.3277]
[1749221363494,0.79345,2518.7,2518.6,0.79342]
[1749221363683,0.79341,2518.8,2518.7,0.7934]
[1749221363884,6.28931,2519.1,2519.0,0.79331]
[1749221364189,5.496,2519.1,2518.6,1.98364]
[1749221364384,0.79336,2519.0,2518.9,0.79335]
[1749221364787,6.28932,2519.1,2519.0,0.79333]
[1749221364988,0.79335,2519.0,2518.9,0.79334]
[1749221365280,3.2078,2519.0,2518.4,3.8815]
[1749221365484,0.79345,2518.7,2518.6,0.79344]
[1749221365791,0.79342,2518.8,2518.7,0.7934]
[1749221366505,0.79339,2518.9,2518.8,0.79338]
[1749221366692,6.28932,2519.1,2519.0,0.79333]
[1749221366892,5.496,2519.1,2518.5,3.29211]
[1749221367093,0.79339,2518.9,2518.8,0.79338]
[1749221367388,0.79346,2518.7,2518.6,0.79344]
[1749221368095,3.2078,2519.0,2518.4,5.1899]
[1749221368391,0.79338,2518.9,2518.8,0.79336]
[1749221368590,0.79341,2518.8,2518.7,0.79339]
[1749221368785,5.496,2519.1,2518.6,3.27682]
[1749221368991,0.79337,2519.0,2518.9,0.79335]
[1749221369194,0.79332,2519.1,2519.0,0.7933]
[1749221369385,0.79338,2518.9,2518.7,1.2932]
[1749221369588,0.79338,2518.9,2518.8,0.79336]
[1749221369990,5.496,2519.2,2518.7,1.2932]
[1749221370188,0.79335,2519.0,2518.9,0.79333]
[1749221370692,0.79339,2518.9,2518.8,0.79337]
[1749221370887,0.79335,2519.0,2518.9,0.79333]
[1749221371886,0.79332,2519.1,2519.0,0.7933]
[1749221372292,6.28929,2519.2,2519.1,0.7933]
[1749221372588,6.4131918,2519.2,2519.1,0.7933]
[1749221372793,0.79333,2519.1,2519.0,0.7933]
[1749221372990,0.79333,2519.1,2519.0,2.1681]
[1749221373196,0.7933,2519.1,2519.0,2.1681]
[1749221374495,6.2893,2519.2,2519.1,0.7933]
[1749221375392,5.496,2519.2,2519.1,0.7933]
[1749221375593,3.2078,2519.3,2519.2,0.79327]
[1749221375789,4.00104,2519.3,2519.2,0.79327]
[1749221376395,0.7933,2519.2,2519.1,0.79328]
[1749221377098,0.79336,2519.0,2518.9,0.79333]
[1749221377501,0.79332,2519.1,2519.0,0.79329]
[1749221377701,4.00107,2519.3,2519.2,0.79327]
[1749221378001,0.79321,2519.4,2519.2,3.2078]
[1749221378300,0.79324,2519.3,2519.2,4.00105]
[1749221378501,0.79324,2519.4,2519.3,0.79322]
[1749221379197,0.79324,2519.4,2519.3,2.05192]
[1749221379398,0.0059525,2519.5,2519.4,0.79321]
[1749221379603,1.71614432,2519.5,2519.4,2.05191]
[1749221379803,0.7991225,2519.5,2519.4,2.05191]
[1749221380101,0.79321,2519.4,2519.3,0.79322]
[1749221380799,0.0059525,2519.5,2519.4,0.79321]
[1749221381104,0.7991225,2519.5,2519.4,0.79321]
[1749221381304,1.71600444,2519.5,2519.4,0.79321]
[1749221381511,0.7991225,2519.5,2519.4,0.79321]
[1749221383899,0.0059525,2519.5,2519.4,0.79321]
[1749221384103,3.9934,2520.0,2519.4,0.79321]
[1749221384104,5.447,2520.2,2520.1,0.79299]
[1749221384301,7.15690292,2520.2,2520.1,0.79299]
[1749221384497,0.79301,2520.1,2520.0,0.793]
[1749221385704,0.0059525,2520.3,2520.2,0.79295]
[1749221387602,4.00055,2520.9,2520.8,0.79276]
[1749221387906,0.79275,2520.9,2520.8,0.79276]
[1749221388103,27.2128,2521.2,2520.6,3.27586]
[1749221388405,2.98038,2521.5,2520.6,3.27586]
[1749221388406,0.79259,2521.4,2521.3,0.79261]
[1749221388601,0.79261,2521.3,2521.2,0.79262]
[1749221389106,0.79263,2521.3,2521.1,0.7986225]
[1749221389304,4.2068,2521.5,2521.1,0.0059525]
[1749221389510,4.2068,2521.5,2521.4,0.79258]
[1749221390002,0.999,2521.5,2521.4,0.79258]
[1749221390302,1.0049525,2521.6,2521.3,3.2078]
[1749221390506,0.79264,2521.2,2521.1,0.0059525]
[1749221391801,4.6405,2521.4,2521.2,0.79264]
[1749221392002,0.79262,2521.3,2521.2,0.79264]
[1749221392210,0.79262,2521.3,2521.1,0.7986025]
[1749221392415,0.79264,2521.2,2521.1,0.7986025]
[1749221393505,0.79262,2521.3,2521.2,0.79264]
[1749221393706,6.23757,2521.5,2521.3,0.79261]
[1749221393905,5.445,2521.5,2521.3,0.79261]
[1749221394107,0.79258,2521.4,2521.1,0.0059525]
[1749221394302,5.445,2521.5,2521.1,0.0059525]
[1749221394303,5.445,2521.5,2521.4,0.79258]
[1749221394503,2.5e-06,2521.6,2521.5,0.79254]
[1749221394703,2.5e-06,2521.6,2521.5,8.36574]
[1749221394912,2.5e-06,2521.6,2521.5,8.68275273]
[1749221395208,2.5e-06,2521.6,2521.5,13.80974]
[1749221395408,1.3261,2522.8,2522.7,0.79217]
[1749221395600,3.2078,2523.0,2522.9,0.79211]
[1749221395800,2.9587,2523.3,2522.9,0.79211]
[1749221395801,2.9587,2523.3,2522.9,0.7921]
[1749221396001,0.79207,2523.1,2522.9,0.7921]
[1749221396201,0.79207,2523.1,2522.9,0.79209]
[1749221396409,0.79208,2523.0,2522.8,0.79211]
[1749221396598,1.0049525,2523.3,2522.8,2.10733]
[1749221396804,0.79211,2522.9,2522.8,1.3152]
[1749221396998,1.2923,2523.2,2522.8,1.3152]
[1749221397210,0.79211,2522.9,2522.7,0.0059525]
[1749221397511,0.79212,2522.9,2522.7,0.0059525]
[1749221397710,4.5001,2523.2,2522.7,0.0059525]
[1749221398208,3.99994,2522.9,2522.7,0.7981125]
[1749221398713,0.79214,2522.8,2522.7,0.0059525]
[1749221400617,2.74854,2522.8,2522.7,0.0059525]
[1749221400806,5.443,2523.0,2522.7,0.0059525]
[1749221401008,3.2078,2523.2,2523.1,0.79204]
[1749221401009,8.6498,2523.2,2523.1,0.79204]
[1749221401508,8.6498,2523.2,2522.7,1.2811525]
[1749221401708,0.79211,2522.9,2522.8,2.06732]
[1749221401903,0.79214,2522.8,2522.7,0.0059525]
[1749221403310,3.99991,2522.9,2522.7,0.0059525]
[1749221403606,3.2078,2522.9,2522.7,0.0059525]
[1749221403807,4.2127525,2523.3,2523.2,0.79202]
[1749221404018,1.0049525,2523.3,2523.2,0.79202]
[1749221404313,8.6488,2524.4,2523.5,1.9798]
[1749221404518,8.6488,2524.4,2523.6,2.11748]
[1749221404519,5.18716,2524.1,2523.6,2.11748]
[1749221404704,5.18716,2524.1,2522.4,3.96129]
[1749221404705,1.97976,2523.6,2522.7,5.4469525]
[1749221404905,0.79214,2522.8,2522.7,0.6572525]
[1749221405109,0.79214,2522.8,2522.7,0.0059525]
[1749221407023,0.79213,2522.9,2522.7,0.0059525]
[1749221407314,3.2137525,2523.0,2522.9,0.79211]
[1749221407520,0.0059525,2523.0,2522.9,3.99991]
[1749221408319,0.0059525,2523.0,2522.9,10.97551]
[1749221408517,0.0059525,2523.0,2522.9,5.97551]
[1749221408817,0.79214,2522.8,2522.7,0.0059525]
[1749221409815,2.16144,2522.8,2522.7,0.0059525]
[1749221410118,1.98079,2522.3,2521.4,3.2078]
[1749221410316,0.79253,2521.6,2521.4,3.2078]
[1749221410621,0.79242,2522.0,2521.9,0.79242]
[1749221410810,5.455,2522.1,2521.8,0.79243]
[1749221411008,6.24737,2522.1,2521.7,0.0059525]
[1749221411215,5.455,2522.1,2522.0,0.79239]
[1749221411418,6.24739,2522.1,2521.9,0.79241]
[1749221411619,5.455,2522.1,2522.0,0.79239]
[1749221411820,0.0059525,2522.2,2522.1,0.79236]
[1749221413824,0.7982825,2522.2,2522.1,0.79236]
[1749221414218,0.0059525,2522.2,2522.0,1.3172]
[1749221414415,0.79239,2522.0,2521.9,0.6912]
[1749221414615,0.79239,2522.0,2521.7,0.7984325]
[1749221414616,0.7982825,2522.2,2522.1,0.79236]
[1749221414929,0.7983025,2522.2,2522.0,0.79237]
[1749221415224,0.79236,2522.1,2521.8,1.367]
[1749221415420,0.79236,2522.1,2522.0,0.79237]
[1749221415624,0.0059525,2522.2,2522.1,0.79236]
[1749221415818,0.79242,2521.9,2521.8,1.367]
[1749221416328,0.7924,2522.0,2521.8,1.367]
[1749221416621,0.79242,2521.9,2521.8,2.15944]
[1749221416827,0.79245,2521.8,2521.7,0.0059525]
[1749221418326,0.79245,2521.8,2520.7,1.3167]
[1749221418327,10.455,2521.8,2520.7,1.3167]
[1749221418522,0.79286,2520.6,2520.4,3.2078]
[1749221418724,3.2078,2521.3,2520.4,4.5245]
[1749221418916,4.00043,2521.3,2521.2,0.79265]
[1749221419131,0.79272,2521.0,2520.9,0.79271]
[1749221419429,0.79272,2521.0,2520.9,0.7927]
[1749221419824,0.0059525,2521.2,2520.7,3.2137525]
[1749221420029,0.79273,2521.0,2520.9,0.79272]
[1749221420539,0.7986225,2521.2,2521.1,0.79267]
[1749221420730,0.0059525,2521.2,2521.1,0.79267]
[1749221421128,0.0059525,2521.2,2521.1,4.00047]
[1749221422336,0.0059525,2521.2,2521.1,0.79267]
[1749221422541,0.0059525,2521.2,2520.7,0.0059525]
[1749221422730,0.79269,2521.1,2521.0,0.7927]
[1749221423032,0.0059525,2521.2,2520.7,0.0059525]
[1749221423033,5.4629525,2521.2,2520.7,0.0059525]
[1749221423234,0.0059525,2521.2,2521.1,0.79267]
[1749221423433,0.0059525,2521.2,2520.7,1.9879225]
[1749221423434,0.0059525,2521.2,2520.7,0.0059525]
[1749221423640,0.79271,2521.0,2520.9,0.79273]
[1749221423836,3.2078,2521.1,2520.7,0.0059525]
[1749221424637,0.79277,2520.8,2520.7,0.0059525]
[1749221425133,4.00057,2520.8,2520.7,0.0059525]
[1749221425325,3.2078,2520.8,2520.7,0.7987525]
[1749221425531,4.00057,2520.8,2520.7,0.7987525]
[1749221425729,3.2078,2520.8,2520.7,0.7987525]
[1749221426138,0.79277,2520.8,2520.7,0.0059525]
[1749221426738,0.79275,2520.9,2520.8,0.79274]
[1749221426935,0.79273,2521.0,2520.9,0.79272]
[1749221427135,0.79276,2520.9,2520.8,0.79275]
[1749221427332,0.0059525,2521.2,2520.7,3.2137525]
[1749221427539,0.0059525,2521.2,2521.1,0.79267]
[1749221428133,3.2078,2522.0,2521.1,8.96324]
[1749221428335,35.2163,2522.5,2522.4,0.79226]
[1749221428536,35.2163,2522.5,2522.2,1.98082]
[1749221428537,0.79231,2522.3,2522.2,0.7923]
[1749221428936,36.00856,2522.5,2522.4,0.79227]
[1749221429135,33.958,2522.5,2522.4,0.79227]
[1749221429441,8.6658,2522.5,2522.3,0.79228]
[1749221429739,0.79229,2522.4,2522.3,0.79228]
[1749221429942,0.7923,2522.3,2522.2,0.0059525]
[1749221430635,0.79228,2522.4,2522.3,0.79228]
[1749221430942,0.7923,2522.3,2522.2,0.0059525]
[1749221431944,0.7923,2522.3,2522.2,0.7982825]
[1749221433543,0.7923,2522.3,2522.2,0.0059525]
[1749221433740,1.98089,2522.2,2521.8,0.79244]
[1749221433939,4.00014,2522.2,2522.1,0.79236]
[1749221434243,9.45705,2522.5,2521.9,1.281]
[1749221434536,0.79231,2522.3,2522.2,0.79231]
[1749221434737,0.79236,2522.1,2522.0,0.0059525]
[1749221435336,3.2078,2522.2,2522.1,0.79236]
[1749221435539,0.79232,2522.3,2522.2,0.79231]
[1749221435741,0.79234,2522.2,2522.1,0.79233]
[1749221436142,0.79236,2522.1,2522.0,1.2914525]
[1749221437141,0.79236,2522.1,2522.0,0.0059525]
[1749221437343,0.79253,2521.7,2521.6,0.7925]
[1749221437547,0.79247,2521.8,2521.7,0.79245]
[1749221437844,0.79251,2521.7,2521.6,0.79249]
[1749221438242,10.18906,2521.7,2521.2,0.6827]
[1749221438447,0.79264,2521.3,2521.2,0.7985825]
[1749221439150,0.79264,2521.3,2521.2,0.0059525]
[1749221439450,3.2078,2521.7,2521.2,0.0059525]
[1749221439646,1.9813,2521.6,2521.2,1.3647525]
[1749221439946,0.79257,2521.5,2521.4,0.79257]
[1749221440445,0.79252,2521.6,2521.5,0.79255]
[1749221440642,0.79252,2521.6,2521.2,1.3647525]
[1749221440643,1.9813,2521.6,2521.2,1.3647525]
[1749221440842,5.449,2521.7,2521.2,1.3647525]
[1749221441251,5.449,2521.9,2521.3,5.18933]
[1749221441447,0.79254,2521.6,2521.5,0.79254]
[1749221442145,0.79255,2521.5,2521.4,2.12986]
[1749221442450,0.79255,2521.5,2521.2,0.0059525]
[1749221442451,0.79261,2521.3,2521.2,0.0059525]
[1749221442650,0.79261,2521.3,2521.2,0.7985925]
[1749221442852,0.79261,2521.3,2521.2,0.0059525]
[1749221443550,0.79261,2521.3,2520.6,0.6771]
[1749221443551,0.7928,2520.7,2520.6,0.6771]
[1749221443754,0.7928,2520.8,2520.7,0.79278]
[1749221443947,5.18938,2521.3,2520.7,1.3373]
[1749221444254,5.45,2521.6,2521.5,0.79255]
[1749221444453,3.2078,2521.7,2521.3,1.98154]
[1749221444656,3.2078,2521.7,2521.5,0.79252]
[1749221444949,3.2078,2521.7,2521.6,0.79252]
[1749221445157,3.2078,2521.7,2521.4,1.3825]
[1749221445347,0.79258,2521.4,2521.3,0.7926]
[1749221445547,5.18903,2521.7,2521.1,1.3825]
[1749221445748,0.79263,2521.3,2521.2,0.79261]
[1749221446248,0.79257,2521.5,2521.4,0.79255]
[1749221446552,1.98133,2521.6,2521.1,1.3825]
[1749221446756,0.79261,2521.4,2521.3,0.79259]
[1749221446953,3.2078,2521.7,2521.1,3.36418]
[1749221447155,0.79254,2521.6,2521.5,0.79252]
[1749221447354,3.2078,2521.7,2521.4,0.79255]
[1749221447355,0.79256,2521.5,2521.4,0.79255]
[1749221447547,0.79254,2521.6,2521.5,0.79252]
[1749221448259,5.90038156,2521.6,2520.7,1.98198]
[1749221448459,0.79265,2521.3,2521.2,0.79263]
[1749221449557,7.43139,2521.5,2521.3,0.79258]
[1749221449558,0.79261,2521.4,2521.3,0.79258]
[1749221449757,0.79265,2521.3,2521.2,0.79262]
[1749221449946,0.7926,2521.4,2521.3,0.79258]
[1749221451160,0.79269,2521.2,2521.1,0.79265]
[1749221451359,0.79264,2521.3,2521.2,0.79261]
[1749221452257,5.45,2521.6,2521.2,5.18938]
[1749221452461,0.79258,2521.5,2521.4,0.79255]
[1749221453562,0.79264,2521.3,2521.2,0.79259]
[1749221453760,0.7925,2521.7,2521.6,0.7925]
[1749221454062,3.2137525,2521.8,2521.7,0.79249]
[1749221454361,0.0059525,2521.8,2521.7,0.79249]
[1749221454565,0.0059525,2521.8,2521.7,4.00029]
[1749221457265,0.0059525,2521.8,2521.7,5.37649]
[1749221459158,0.7984025,2521.8,2521.7,4.584]
[1749221459363,0.0059525,2521.8,2521.5,1.3277]
[1749221459768,0.7984225,2521.8,2521.7,0.79248]
[1749221459966,0.79248,2521.7,2521.6,2.1185]
[1749221460165,0.0059525,2521.8,2521.5,1.3277]
[1749221460364,0.0059525,2521.8,2521.7,0.79248]
[1749221460861,0.0059525,2521.8,2521.6,0.79249]
[1749221461061,1.98123,2521.7,2521.1,0.79266]
[1749221461261,0.79271,2521.1,2521.0,0.79269]
[1749221461660,0.79271,2521.1,2520.7,7.81559]
[1749221461661,3.2078,2521.1,2520.7,5.8336]
[1749221461865,0.79268,2521.2,2521.1,0.79266]
[1749221462069,5.18928,2521.4,2520.8,1.326]
[1749221462368,0.79273,2521.0,2520.9,0.79272]
[1749221462759,3.2078,2521.1,2520.7,3.2078]
[1749221462960,0.79277,2520.8,2520.7,0.79277]
[1749221463567,5.91441,2521.1,2521.0,0.79271]
[1749221463756,6.81727024,2521.1,2521.0,0.79271]
[1749221463956,6.81727024,2521.1,2520.6,1.98203]
[1749221463957,5.449,2521.3,2521.1,0.79265]
[1749221464161,0.79276,2520.9,2520.7,1.3278]
[1749221464359,0.79276,2520.9,2520.8,0.79274]
[1749221464561,1.98177,2521.0,2520.3,2.6192]
[1749221464764,0.79281,2520.7,2520.6,0.7928]
[1749221465166,0.79278,2520.8,2520.7,0.79277]
[1749221465369,5.45,2520.9,2520.3,2.6192]
[1749221465571,0.793,2520.1,2520.0,0.79299]
[1749221465763,0.79303,2520.0,2519.9,0.79304]
[1749221466069,3.2078,2520.2,2519.6,2.6031]
[1749221466459,0.0059525,2520.3,2520.2,0.79296]
[1749221466860,2.5e-06,2520.3,2520.2,0.79296]
[1749221467370,2.5e-06,2520.3,2520.2,6.46316]
[1749221467775,2.5e-06,2520.3,2520.2,1.46316]
[1749221468069,2.5e-06,2520.3,2520.2,6.46316]
[1749221469474,2.5e-06,2520.3,2520.2,11.91416]
[1749221470371,2.5e-06,2520.3,2520.2,6.82416]
[1749221470672,2.5e-06,2520.3,2520.2,1.46316]
[1749221471273,2.5e-06,2520.3,2520.2,0.79296]
[1749221473069,2.5e-06,2520.3,2520.2,5.79296]
[1749221473370,2.5e-06,2520.3,2520.2,0.79296]
[1749221475172,2.5e-06,2520.3,2520.2,5.79296]
[1749221475774,2.5e-06,2520.3,2520.2,0.79296]
[1749221478074,2.5e-06,2520.3,2520.0,5.19629]
[1749221478075,0.79299,2520.1,2520.0,0.79893]
[1749221478264,0.79299,2520.1,2520.0,0.00595]
[1749221478465,5.361,2520.2,2520.1,0.79299]
[1749221478668,6.15396,2520.2,2520.1,0.79299]
[1749221478869,5.361,2520.2,2520.1,0.79299]
[1749221479277,0.6920025,2520.3,2520.2,0.79296]
[1749221479481,2.5e-06,2520.3,2520.2,0.79296]
[1749221480872,2.5e-06,2520.3,2520.2,11.15496]
[1749221481272,9.222,2521.3,2521.2,0.79264]
[1749221482176,8.5698,2521.3,2521.2,0.79264]
[1749221482986,3.2078,2521.3,2521.2,0.79264]
[1749221483178,0.0059525,2521.5,2521.4,0.79258]
[1749221486284,2.0973225,2521.5,2521.4,0.79258]
[1749221486479,0.0059525,2521.5,2521.4,0.79258]
[1749221489087,2.5e-06,2521.5,2521.4,0.79258]
[1749221489282,2.5e-06,2521.5,2521.4,6.15358]
[1749221491486,2.5e-06,2521.5,2521.4,11.15358]
[1749221492492,1.3535,2522.7,2522.6,0.7922]
[1749221492687,0.79222,2522.6,2522.5,0.79222]
[1749221492882,1.3535,2522.7,2521.8,5.18889]
[1749221493086,8.72271,2522.6,2521.8,5.18889]
[1749221493492,0.79228,2522.4,2522.3,0.79227]